[Event "USA Championship Women 2022"]
[Site "Saint Louis"]
[Date "2022.10.08"]
[Round "4.3"]
[White "Wu, Rochelle"]
[Black "Cervantes Landeiro, Thalia"]
[Result "1/2-1/2"]
[ECO "D85"]
[WhiteElo "2317"]
[BlackElo "2272"]
[Annotator "TA"]
[PlyCount "135"]
[EventDate "2022.09.05"]
[EventType "tourn"]
[EventCountry "USA"]
[SourceTitle "playchess.com"]
[Source "ChessBase"]
[SourceQuality "1"]
[TimeControl "40/5400+30:1800+30"]

{[%evp 14,135,8,11,17,-31,29,0,-18,0,0,0,0,-10,47,-39,0,-6,-13,-63,-51,-32,-26,-39,-5,-10,142,146,120,135,116,63,50,39,148,57,65,0,110,114,218,96,233,230,230,230,230,230,216,207,309,283,614,0,0,14,8,8,29,0,13,6,23,18,18,8,13,20,41,-41,0,0,0,0,0,0,0,0,0,0,0,0,0,0,0,0,0,0,0,0,0,0,0,0,0,0,0,0,0,0,0,0,0,0,0,0,0,0,0,0,0,0,0,0,0,0,0,0,0,0,0,0,0,0]} 1. d4 {[%emt 0:00:09]} Nf6 {[%emt 0:00:09]} 2. c4 {[%emt 0:00:09]} g6 {[%emt 0:00:08]} 3. Nc3 {[%emt 0:00:09]} d5 {[%emt 0:00:11]} 4. cxd5 {[%emt 0:00:09]} Nxd5 {[%emt 0:00:08]} 5. Bd2 {[%emt 0:00:23]} Bg7 {[%emt 0:00:59]} 6. e4 {[%emt 0:00:25]} Nxc3 {[%emt 0:04:24]} 7. Bxc3 {[%emt 0:00:17]} O-O {[%emt 0:00:46]} 8. Qd2 {[%emt 0:00:39]} Nd7 {[%emt 0:08:31] D85: Exchange Grünfeld: Unusual White 7th moves and lines with 7 Nf3.} 9. h4 {[%emt 0:03:54] [#]} (9. Nf3 $11) 9... Nf6 $146 {[%emt 0:06:39]} (9... e5 $1 $15) ({Predecessor:} 9... c5 10. d5 Nf6 11. f3 e5 12. g4 Ne8 13. h5 Nd6 14. hxg6 fxg6 15. Qh2 h6 16. Bxe5 {1-0 (24) Tristan,L (2535)-Savchenko,B (2564) Chess.com INT 2020}) 10. Bd3 {[%emt 0:00:57]} (10. f3 $142) 10... c5 $11 {[%emt 0:08:57]} 11. d5 {[%emt 0:18:49][%cal Oh4h5]} e6 {[%emt 0:05:46]} 12. d6 {[%emt 0:01:11]} e5 {[%emt 0:04:58]} (12... Qxd6 $2 13. e5 Qe7 14. exf6 Bxf6 15. h5 $18) 13. Bc2 $1 {[%emt 0:02:43]} Bd7 {[%emt 0:07:57]} (13... Re8 $11) 14. Ne2 {[%emt 0:10:03]} (14. Bxe5 Re8 15. Nf3 Bg4 $15) (14. Nf3 $14) 14... Ng4 {[%emt 0:05:39]} 15. h5 {[%emt 0:09:36]} Qf6 {[%emt 0:03:33]} 16. f4 {[%emt 0:01:05]} (16. Nc1 $11) 16... b5 $1 $15 {[%emt 0:05:58][%cal Bb7b5,Bb5b4][%mdl 32] Strongly threatening ...b4.} 17. b3 {[%emt 0:03:48]} b4 {[%emt 0:00:57]} 18. Bb2 {[%emt 0:00:11]} Bb5 {[%emt 0:01:07]} 19. O-O-O {[%emt 0:13:08]} Bxe2 $2 {[%emt 0:06:06]} ({Black should try} 19... Rac8 $11) 20. Qxe2 $16 {[%emt 0:00:05]} Qxf4+ {[%emt 0:00:40]} 21. Kb1 {[%emt 0:00:05]} Nf6 {[%emt 0:08:34]} 22. hxg6 {[%emt 0:07:16]} (22. h6 $16 Bh8 23. d7) 22... hxg6 $14 {[%emt 0:01:00]} 23. Qc4 {[%emt 0:04:19]} Nd7 {[%emt 0:04:46]} (23... a5 $14) 24. Rdf1 {[%emt 0:03:21] White has more active pieces. The black rooks are badly placed.} (24. g4 $16) 24... Qd2 {[%emt 0:01:45][%csl LRd6,LRg2] Against Qe2} 25. Rd1 {[%emt 0:00:20]} (25. Qa6 $14) 25... Qg5 {[%emt 0:00:31]} (25... Qf4 $1 $11 {remains equal.}) 26. Bd3 {[%emt 0:01:03][%mdl 1024] White has strong compensation.} Rac8 {[%emt 0:02:08]} (26... a5 $16) 27. Qc2 {[%emt 0:01:31]} (27. Be2 $1 $18 {and the rest is easy.}) 27... Qf6 {[%emt 0:03:09]} (27... Nf6 $16) 28. Bb5 {[%emt 0:02:27]} Nb6 {[%emt 0:01:54]} 29. d7 {[%emt 0:04:43]} Rc7 {[%emt 0:01:24][%cal Oa7a6]} 30. Qd3 $1 {[%emt 0:00:40]} Rd8 {[%emt 0:01:16][%cal Oa7a6]} 31. Qh3 {[%emt 0:03:26]} a6 {[%emt 0:01:31]} (31... Kf8 $142) 32. Rdf1 $18 {[%emt 0:02:35] Really sharp!} (32. Bxa6 Qc6 $15) 32... Qe6 $2 {[%emt 0:02:56] [#]} (32... axb5 33. Rxf6 Bxf6 34. Qh7+ Kf8) 33. Qxe6 $2 {[%emt 0:02:15]} ({Not} 33. Qh4 f6 34. Qh7+ (34. Bxa6 c4 $15) 34... Kf8 $14) (33. Qh7+ $1 $18 Kf8 {[#]} 34. Rh6 $1 {[%mdl 512]} (34. Qh4 f6 $11) 34... Rcxd7 35. Rxg6 (35. Bxd7 Qxd7 36. Rh3 Qg4 $11) 35... Qxg6 36. Qxg6 Rd1+ 37. Bc1 Rxf1 38. Qxb6) 33... fxe6 $11 {[%emt 0:00:08]} 34. Bxa6 {[%emt 0:00:05]} Rcxd7 {[%emt 0:01:04]} (34... c4 {looks sharper.} 35. Bc1 c3 36. Rh3 Nxd7 37. Bc4 Nc5) 35. Rc1 {[%emt 0:01:17]} Rc7 {[%emt 0:00:53]} 36. Rhd1 {[%emt 0:00:51]} Rxd1 {[%emt 0:00:44]} 37. Rxd1 {[%emt 0:00:02][%cal Bc1d1,Bd1d6,Bd6e6][%mdl 32]} c4 {[%emt 0:00:09]} 38. Rd6 {[%emt 0:00:53][%csl LRb6,LRe6]} c3 {[%emt 0:00:41]} 39. Bc1 {[%emt 0:02:09]} Nd7 {[%emt 0:00:31]} 40. Bc4 {[%emt 0:02:21] This bishop pair is nice.} Nc5 {[%emt 0:00:49]} 41. Be3 {[%emt 0:03:23]} (41. Rb6 $14) 41... Nxe4 {[%emt 0:03:29]} 42. Rxe6 {[%emt 0:01:14] The position is equal.} Kh7 {[%emt 0:04:12]} 43. Bd3 {[%emt 0:05:20]} Nd2+ {[%emt 0:11:14]} 44. Kc2 {[%emt 0:03:12]} e4 $1 {[%emt 0:01:43]} 45. Bxe4 {[%emt 0:00:56]} Nxe4 {[%emt 0:00:59]} 46. Rxe4 {[%emt 0:00:07][%mdl 4096] Endgame KRB-KRB} Bf8 {[%emt 0:00:59]} 47. Rc4 {[%emt 0:08:29]} Re7 {[%emt 0:03:34]} 48. Kd3 {[%emt 0:00:10]} Rd7+ {[%emt 0:01:38]} 49. Rd4 {[%emt 0:01:02]} Rf7 {[%emt 0:01:08]} 50. Rf4 {[%emt 0:00:13]} Rd7+ {[%emt 0:00:22]} 51. Rd4 {[%emt 0:00:06]} Rb7 {[%emt 0:02:08]} 52. Rd8 {[%emt 0:05:43]} Bg7 {[%emt 0:03:27]} 53. Bd4 {[%emt 0:02:04]} Rc7 {[%emt 0:00:35] White must now prevent ...c2.} 54. Kc2 {[%emt 0:01:36]} Rf7 {[%emt 0:00:19]} 55. Bc5 {[%emt 0:00:28]} Rf5 {[%emt 0:01:33]} 56. Rc8 {[%emt 0:00:51]} Rg5 {[%emt 0:00:33]} 57. Bxb4 {[%emt 0:00:41]} Rxg2+ {[%emt 0:00:08]} 58. Kd3 {[%emt 0:00:04]} Rd2+ {[%emt 0:00:49]} 59. Ke3 {[%emt 0:00:42] aiming for Rc7.} Rxa2 {[%emt 0:00:41]} 60. Bxc3 {[%emt 0:00:10]} Bxc3 {[%emt 0:00:47]} 61. Rxc3 {[%emt 0:00:07] KR-KR} Rb2 {[%emt 0:00:04]} 62. Kf3 {[%emt 0:00:05]} Kh6 {[%emt 0:00:10]} 63. Kg3 {[%emt 0:00:07]} Rb1 {[%emt 0:00:09]} 64. Kg4 {[%emt 0:00:19]} Rb2 {[%emt 0:00:07]} 65. Kg3 {[%emt 0:00:05]} Rb1 {[%emt 0:00:04]} 66. Kg4 {[%emt 0:00:05]} Rb2 {[%emt 0:00:06]} 67. Kg3 {[%emt 0:00:06]} Rb1 {[%emt 0:00:04]} 68. Kg4 {[%emt 0:00:07] Blacks defense is rewarded with a draw.  Weighted Error Value: White=0.26 (precise) /Black=0.33} 1/2-1/2

[Event "USA Championship Women 2022"]
[Site "Saint Louis"]
[Date "2022.10.08"]
[Round "4.4"]
[White "Abrahamyan, Tatev"]
[Black "Foisor, Sabina-Francesca"]
[Result "1-0"]
[ECO "B10"]
[WhiteElo "2308"]
[BlackElo "2203"]
[Annotator "TA"]
[PlyCount "117"]
[EventDate "2022.09.05"]
[EventType "tourn"]
[EventCountry "USA"]
[SourceTitle "playchess.com"]
[Source "ChessBase"]
[SourceQuality "1"]
[TimeControl "40/5400+30:1800+30"]

{[%evp 9,117,6,24,14,28,12,81,72,59,29,17,10,29,25,25,37,20,21,37,44,46,6,20,6,47,50,103,94,117,120,122,114,110,122,110,113,135,29,39,8,104,19,90,88,92,92,92,37,90,83,83,83,90,90,79,81,138,156,152,148,137,122,115,73,73,52,55,37,66,74,79,43,154,154,162,162,189,189,710,707,695,687,672,665,626,586,529,463,447,439,733,199,315,312,29977,29978,29984,29985,29989,29990,29992,29989,29989,29990,29993,29993,29993,29994,29994,29995]} 1. e4 {[%emt 0:00:03][%cal Be2e4,Be4e5][%mdl 32]} c6 {[%emt 0:00:09]} 2. Nf3 {[%emt 0:00:15]} d5 {[%emt 0:01:03]} 3. d3 {[%emt 0:00:04]} g6 {[%emt 0:00:54]} 4. e5 {[%emt 0:00:12]} Bg7 {[%emt 0:03:39]} 5. d4 {[%emt 0:00:29]} f6 {[%emt 0:06:28]} 6. c4 {[%emt 0:03:46] B10: Caro-Kann: 2 d3 and 2 c4.} Nh6 {[%emt 0:07:58]} 7. Nc3 {[%emt 0:05:07] [#]} Nf7 $146 {[%emt 0:05:07]} (7... O-O $11 {remains equal.}) ({Predecessor:} 7... Be6 8. Qb3 Qd7 9. h3 O-O 10. Bf4 Nf7 11. exf6 exf6 12. Be2 a5 13. cxd5 cxd5 {1-0 (43) Ibarra Jerez,J (2553)-Bazarov,K (2262) Chess.com INT 2021}) 8. exf6 $16 {[%emt 0:06:33] White is better.} Bxf6 {[%emt 0:05:29]} 9. cxd5 {[%emt 0:06:15]} cxd5 {[%emt 0:03:13]} 10. Qb3 {[%emt 0:05:25]} e6 $1 {[%emt 0:03:05]} 11. h4 {[%emt 0:06:48]} Nc6 {[%emt 0:04:07]} 12. Be3 {[%emt 0:06:34]} Bd7 {[%emt 0:05:56]} 13. Bd3 {[%emt 0:08:01]} (13. Qxb7 Rb8 14. Qa6 O-O $11) 13... Qb6 {[%emt 0:07:04]} 14. Qxb6 {[%emt 0:07:21]} axb6 {[%emt 0:00:01]} 15. Rc1 {[%emt 0:00:27]} Nd6 {[%emt 0:06:25]} 16. h5 {[%emt 0:26:53]} Kf7 {[%emt 0:10:29]} 17. g4 {[%emt 0:02:48]} e5 {[%emt 0:12:19]} (17... Nc4 $14) 18. dxe5 {[%emt 0:02:36]} (18. Nxd5 {is interesting.} Bxg4 19. Nxe5+ Bxe5 20. dxe5 Nxe5 21. Rc7+) 18... Nxe5 {[%emt 0:00:03]} 19. Nxe5+ {[%emt 0:00:27]} Bxe5 {[%emt 0:00:01]} 20. Nxd5 {[%emt 0:01:44] aiming for Rc7.} Bc6 {[%emt 0:04:28]} 21. hxg6+ {[%emt 0:00:27]} hxg6 {[%emt 0:00:02]} 22. Rxh8 {[%emt 0:00:31]} Rxh8 {[%emt 0:01:56]} 23. Nb4 {[%emt 0:03:37]} (23. Nxb6 Bxb2 24. Rc2 Bf6 $16) (23. Nf4 $1 $16) 23... Bf3 $1 $11 {[%emt 0:04:07]} 24. Rc7+ {[%emt 0:00:44]} Ke6 {[%emt 0:00:31]} (24... Kf6 $1 $11 {keeps the balance.}) 25. Bg5 {[%emt 0:02:35] White is more active.} (25. Bxb6 Ne4 26. Bxe4 (26. Rxb7 $2 Rh1+ 27. Bf1 Bg2 $19) (26. Bc4+ $2 Kd6 $17) 26... Bxc7 27. Bxf3 Bxb6 $15) (25. Bxg6 $16 {Bg5 is the strong threat.} Rg8 26. Bg5 $1) 25... Rh1+ {[%emt 0:02:32]} (25... Ne4 $1 $11 26. Bxe4 (26. Re7+ Kd6 $11) 26... Bxe4) 26. Kd2 $16 {[%emt 0:00:15][%csl Gg5][%cal Rc7e7]} Ne4+ {[%emt 0:00:31]} 27. Bxe4 {[%emt 0:00:26]} Bxe4 {[%emt 0:00:21]} 28. Re7+ {[%emt 0:01:47]} Kd6 {[%emt 0:00:05]} 29. Nd3 {[%emt 0:00:04]} Bxd3 {[%emt 0:03:42]} 30. Kxd3 {[%emt 0:00:03][%mdl 4096] Endgame KRB-KRB} Rd1+ {[%emt 0:01:40]} 31. Ke4 {[%emt 0:02:15]} Rd4+ {[%emt 0:01:57]} 32. Kf3 {[%emt 0:00:08]} Ra4 {[%emt 0:00:25]} (32... Rd3+ $142 33. Ke2 Rd4) 33. Rxb7 {[%emt 0:00:50]} Kc6 {[%emt 0:00:09]} 34. Re7 {[%emt 0:00:33]} Kd6 {[%emt 0:00:21]} 35. b3 {[%emt 0:01:10]} Rxa2 {[%emt 0:00:12]} 36. Rh7 {[%emt 0:00:37]} Rb2 {[%emt 0:01:12]} 37. Rh6 {[%emt 0:00:12]} Rxb3+ {[%emt 0:00:10]} 38. Be3 {[%emt 0:00:13]} b5 {[%emt 0:00:47]} 39. Rxg6+ {[%emt 0:00:10]} Kd5 {[%emt 0:00:26]} 40. Rg8 {[%emt 0:00:40] Hoping for g5.} b4 {[%emt 0:00:42] [#] Black is now going downhill.} ({Black should play} 40... Rc3 $1 $14) 41. Rd8+ $1 {[%emt 0:04:40]} Ke6 {[%emt 0:07:47]} 42. Ke4 {[%emt 0:08:12] Threatens to win with Re8+.} Bf6 {[%emt 0:02:43]} 43. Rb8 {[%emt 0:01:32]} Rb1 $2 {[%emt 0:00:24]} (43... Bc3 44. f4 Rb1 45. f5+ Kd7) 44. Rb6+ $18 {[%emt 0:05:30]} Kf7 {[%emt 0:03:59]} 45. g5 {[%emt 0:01:08]} Bc3 {[%emt 0:01:10]} 46. g6+ {[%emt 0:07:19]} Ke8 {[%emt 0:06:54]} 47. Rb8+ {[%emt 0:02:12]} Ke7 {[%emt 0:00:14]} 48. Bg5+ {[%emt 0:02:29]} Kd6 {[%emt 0:01:56]} 49. Kf5 {[%emt 0:01:22] And now Bf6 would win.} Rf1 {[%emt 0:04:52]} (49... Ra1 $142 50. Rd8+ Kc7) 50. Bf4+ $2 {[%emt 0:00:43]} (50. f4) 50... Kc5 {[%emt 0:01:13]} (50... Kd5 $142) 51. Rc8+ {[%emt 0:00:27]} Kd5 $2 {[%emt 0:00:51] [#]} (51... Kb5 $18 52. Be3 Rd1 53. Rc5+ Ka6) 52. Rxc3 $1 {[%emt 0:00:20][%mdl 512] White mates.} bxc3 {[%emt 0:00:41] KR-KB} (52... Re1 53. Rd3+) 53. g7 {[%emt 0:00:06]} Rxf2 {[%emt 0:02:17]} 54. g8=Q+ {[%emt 0:00:05]} Kd4 {[%emt 0:00:10]} 55. Qe6 {[%emt 0:00:55]} Rxf4+ {[%emt 0:01:36]} 56. Kxf4 {[%emt 0:00:04]} Kd3 {[%emt 0:00:04]} 57. Qe4+ {[%emt 0:00:54]} Kd2 {[%emt 0:00:02]} 58. Qd4+ {[%emt 0:00:05]} Kc2 {[%emt 0:00:10]} 59. Ke3 {[%emt 0:00:06] Weighted Error Value: White=0.26 (precise) /Black=0.35} 1-0

[Event "USA Championship Women 2022"]
[Site "Saint Louis"]
[Date "2022.10.08"]
[Round "4.5"]
[White "Yu, Jennifer"]
[Black "Morris-Suzuki, Sophie"]
[Result "1-0"]
[ECO "A36"]
[WhiteElo "2297"]
[BlackElo "2126"]
[Annotator "TA"]
[PlyCount "71"]
[EventDate "2022.09.05"]
[EventType "tourn"]
[EventCountry "USA"]
[SourceTitle "playchess.com"]
[Source "ChessBase"]
[SourceQuality "1"]
[TimeControl "40/5400+30:1800+30"]

{[%evp 18,70,22,18,31,16,14,-29,0,-9,18,9,24,0,75,33,155,60,60,70,56,59,131,102,131,122,139,142,140,134,171,127,158,163,466,463,594,567,700,670,12800,12808,1652,2016,29990,29991,29995,29996,29996,29997,29997,29998,29998,29999,29999]} 1. c4 {[%emt 0:00:05]} c5 {[%emt 0:00:13]} 2. Nc3 {[%emt 0:00:25]} Nf6 {[%emt 0:00:17]} 3. e4 {[%emt 0:01:34]} d6 {[%emt 0:01:26]} 4. g3 {[%emt 0:00:56]} Nc6 {[%emt 0:05:41]} 5. Bg2 {[%emt 0:00:47]} g6 {[%emt 0:03:29]} 6. Nge2 {[%emt 0:03:12]} Bg7 {[%emt 0:01:40]} 7. d3 {[%emt 0:03:46]} O-O {[%emt 0:01:01]} 8. O-O {[%emt 0:00:41]} Ne8 {[%emt 0:05:23][%cal Bf6e8,Be8c7,Bc7e6][%mdl 32]} 9. Be3 {[%emt 0:01:34]} Nd4 {[%emt 0:10:11]} 10. Qd2 {[%emt 0:00:47]} Nc7 {[%emt 0:04:44] A36: Symmetrical English vs ...g6: 4 Bg2 Bg7.} 11. f4 {[%emt 0:06:44]} Rb8 {[%emt 0:06:30] [#]} 12. Nd5 $146 {[%emt 0:22:09]} ({Predecessor:} 12. Rac1 b5 13. Bxd4 cxd4 14. Nxb5 Nxb5 15. cxb5 Rxb5 16. Rc2 e5 17. Rfc1 Bg4 18. h3 Bxe2 19. Qxe2 {0-1 (30) Khabibullin,R-Evdokimov,A St Petersburg 1998}) 12... Nxe2+ {[%emt 0:07:20] Black has an edge.} 13. Qxe2 {[%emt 0:00:03]} Ne6 {[%emt 0:00:31]} (13... b5 $5 {[%cal Rb5c4]}) 14. e5 {[%emt 0:07:05]} b5 {[%emt 0:15:44]} 15. Rad1 {[%emt 0:07:22]} Re8 {[%emt 0:13:04]} (15... dxe5 $11 16. fxe5 Bb7) 16. b3 {[%emt 0:05:03]} (16. Qf2 $5 {[%cal Rf4f5]}) 16... b4 {[%emt 0:08:42]} (16... Nd4 $14 17. Bxd4 cxd4) 17. Qf2 {[%emt 0:05:16]} (17. f5 $16 gxf5 18. Qh5) 17... Nd4 $14 {[%emt 0:00:13]} 18. Bxd4 {[%emt 0:07:41]} cxd4 {[%emt 0:00:03]} 19. Qxd4 {[%emt 0:00:06]} Bg4 {[%emt 0:00:31] White now steadily converts the win.} ({Black should try} 19... dxe5 $1 $14 20. fxe5 e6) 20. Rde1 {[%emt 0:02:23]} ({Stronger than} 20. Qxa7 Bxd1 21. Rxd1 dxe5 22. fxe5 e6 23. Nf6+ Bxf6 24. exf6 Qxf6 $15) 20... a5 {[%emt 0:03:12]} 21. Qb2 {[%emt 0:05:55] White has more active pieces.} a4 {[%emt 0:03:15]} 22. d4 {[%emt 0:01:33]} Qa5 {[%emt 0:02:51]} 23. Qd2 {[%emt 0:04:11]} Qa7 {[%emt 0:01:18]} 24. Kh1 {[%emt 0:01:46]} dxe5 {[%emt 0:01:13]} 25. fxe5 {[%emt 0:00:15]} Red8 $2 {[%emt 0:00:35]} (25... Be6 {is a better chance.} 26. Rd1 (26. Nxb4 Qa5 $16) 26... Bg4) 26. Qg5 $18 {[%emt 0:01:23]} Qxd4 {[%emt 0:03:08]} 27. Re4 {[%emt 0:03:18][%cal Be1e4,Be4g4,Bg4h4][%mdl 32]} ({Less strong is} 27. Qxe7 Be6 $16) 27... Qb2 {[%emt 0:00:28]} 28. Rxg4 {[%emt 0:02:24]} Qxa2 {[%emt 0:01:14]} 29. Nxe7+ {[%emt 0:00:34]} Kh8 {[%emt 0:00:31]} 30. Rh4 {[%emt 0:05:10][%cal Oh4h7] Threatening mate with Rxh7+!} Rf8 {[%emt 0:00:21]} 31. Be4 {[%emt 0:00:37] White mates.} Qe2 {[%emt 0:00:38] [#]} 32. Nxg6+ $1 {[%emt 0:00:34]} fxg6 {[%emt 0:00:13] [#]} 33. Rxh7+ $3 {[%emt 0:00:03][%mdl 512]} Kg8 {[%emt 0:00:07] [#]} 34. Rxg7+ $1 {[%emt 0:00:03]} Kxg7 {[%emt 0:00:12]} 35. Qxg6+ {[%emt 0:00:03]} Kh8 {[%emt 0:00:06]} 36. Qh7# {[%emt 0:00:02] Weighted Error Value: White=0.19 (very precise) /Black=0.77} 1-0

[Event "USA Championship Women 2022"]
[Site "Saint Louis"]
[Date "2022.10.08"]
[Round "4.6"]
[White "Zatonskih, Anna"]
[Black "Lee, Megan"]
[Result "1-0"]
[ECO "D35"]
[WhiteElo "2368"]
[BlackElo "2226"]
[Annotator "TA"]
[PlyCount "131"]
[EventDate "2022.09.05"]
[EventType "tourn"]
[EventCountry "USA"]
[SourceTitle "playchess.com"]
[Source "ChessBase"]
[SourceQuality "1"]
[TimeControl "40/5400+30:1800+30"]

{[%evp 15,131,0,0,0,0,0,0,0,0,0,0,0,0,-7,-13,-4,-4,-13,0,-6,0,0,0,-8,17,0,0,16,61,60,96,102,104,104,108,95,92,93,110,101,109,107,106,101,137,136,141,139,154,141,156,154,202,179,356,365,357,247,284,290,458,318,301,306,315,284,309,268,253,244,279,264,301,293,422,404,393,366,328,270,262,229,285,270,356,346,572,568,668,674,672,666,768,541,547,528,786,765,1577,5273,5273,5214,5202,4271,29983,29984,29993,29990,29990,29989,29989,29990,29991,29990,29990,29990,29995,29990]} 1. d4 {[%emt 0:00:25]} d5 {[%emt 0:00:05]} 2. c4 {[%emt 0:00:08]} c6 {[%emt 0:00:04]} 3. Nc3 {[%emt 0:00:25]} Nf6 {[%emt 0:00:14]} 4. Nf3 {[%emt 0:00:26]} e6 {[%emt 0:00:36]} 5. cxd5 {[%emt 0:05:15]} exd5 {[%emt 0:00:09]} 6. Bf4 {[%emt 0:00:47]} Bf5 {[%emt 0:05:45]} 7. e3 {[%emt 0:05:19]} Qb6 {[%emt 0:05:55]} 8. Qc1 {[%emt 0:07:02]} Nbd7 {[%emt 0:09:44]} 9. Be2 {[%emt 0:03:52] D35: Queen's Gambit Declined: Exchange Variation.} Be7 {[%emt 0:06:36]} 10. h3 {[%emt 0:07:56]} h6 {[%emt 0:07:34]} 11. Ne5 {[%emt 0:07:12] The position is equal.} Nxe5 {[%emt 0:06:38]} 12. Bxe5 {[%emt 0:00:27]} O-O {[%emt 0:08:19]} 13. O-O {[%emt 0:00:12]} Qd8 {[%emt 0:09:43]} 14. Rd1 {[%emt 0:03:35]} Bd6 {[%emt 0:04:32]} 15. Bxd6 {[%emt 0:07:54]} Qxd6 {[%emt 0:00:01] [#]} 16. a3 $146 {[%emt 0:00:15]} ({Predecessor:} 16. Bd3 Bxd3 17. Rxd3 Qe7 18. Qc2 Ne8 19. Ne2 Nd6 20. Rb3 Rfe8 21. Qc5 Qd7 22. Rc1 {½-½ (37) Pluess,P (2206)-Rosenthal,J (2338) Switzerland 2013}) 16... a5 {[%emt 0:07:50]} 17. Qd2 {[%emt 0:05:41]} Rfe8 {[%emt 0:05:28]} 18. Rac1 {[%emt 0:01:00]} Re7 {[%emt 0:03:38]} 19. Bf1 {[%emt 0:04:16]} b5 {[%emt 0:05:31]} 20. Bd3 {[%emt 0:11:57]} Bxd3 {[%emt 0:07:47]} 21. Qxd3 {[%emt 0:00:02]} Rae8 {[%emt 0:02:13]} 22. Rc2 {[%emt 0:05:11]} Nd7 {[%emt 0:00:27]} 23. a4 {[%emt 0:01:56]} b4 {[%emt 0:00:16]} 24. Ne2 {[%emt 0:01:05][%cal Bc3e2,Be2c1,Bc1b3,Bb3d2,Bd2f3,Bf3e5,Be5d3,Bd3c5][%mdl 32]} Nb8 {[%emt 0:00:46] Inhibits Qa6.} 25. Nc1 {[%emt 0:03:06]} Ra7 {[%emt 0:00:31]} 26. Nb3 {[%emt 0:00:32]} g6 {[%emt 0:00:59]} 27. Rdc1 {[%emt 0:02:20]} Kg7 {[%emt 0:01:17]} 28. Rc5 {[%emt 0:01:19]} Qd8 {[%emt 0:00:29]} 29. Nd2 {[%emt 0:00:15]} Rae7 {[%emt 0:01:04]} 30. Nf3 {[%emt 0:01:27]} Qb6 {[%emt 0:00:28]} 31. Ne5 {[%emt 0:02:14][%cal Re5c6]} Rc7 {[%emt 0:00:14]} 32. Qd1 {[%emt 0:04:26] White has more active pieces. The black rooks are badly placed.} f6 {[%emt 0:00:30]} 33. Nd3 {[%emt 0:00:59] [#] aiming for Nf4.} g5 {[%emt 0:00:46] Against Nf4} (33... Nd7 $16) 34. R5c2 {[%emt 0:02:57]} Nd7 $2 {[%emt 0:00:24]} (34... Ra7 {was worth a try.} 35. Qf3 Qd8) 35. Qg4 $18 {[%emt 0:01:14][%cal Oc2c6] And now Rxc6! would win.} Nf8 {[%emt 0:00:32]} 36. Nc5 {[%emt 0:00:16] Prevents Ne6.} Kg6 {[%emt 0:00:31]} 37. h4 {[%emt 0:01:49][%cal Bh3h4,Bh4h5][%mdl 32] Strongly threatening hxg5.} Ree7 {[%emt 0:00:43]} (37... Rcc8 $142 38. f4 h5 39. f5+ Kh6 40. hxg5+ fxg5) 38. h5+ {[%emt 0:00:58]} Kg7 {[%emt 0:00:39]} 39. Qf5 {[%emt 0:00:48]} Ra7 {[%emt 0:00:23]} 40. Nb3 {[%emt 0:02:09]} Re6 {[%emt 0:00:32]} 41. Rc5 {[%emt 0:31:06]} Ra6 {[%emt 0:12:53]} 42. Qd3 {[%emt 0:00:00]} Ra7 {[%emt 0:05:11]} 43. Nd2 {[%emt 0:00:00]} Rf7 {[%emt 0:02:52]} 44. Qc2 {[%emt 0:00:00]} Qa6 {[%emt 0:05:22]} (44... f5 $142 45. Rxc6 Rxc6 46. Qxc6 Qxc6 47. Rxc6 f4) 45. Nb3 {[%emt 0:00:00]} f5 {[%emt 0:03:12]} 46. Rxa5 {[%emt 0:00:00]} Qb6 {[%emt 0:00:52]} 47. Rc5 {[%emt 0:00:00][%cal Rc5c6]} Rff6 {[%emt 0:00:01]} 48. Qd3 {[%emt 0:00:00]} f4 {[%emt 0:00:32]} 49. exf4 {[%emt 0:00:00]} ({Don't do} 49. a5 $6 Qc7 $18) 49... Rxf4 {[%emt 0:00:27]} 50. a5 {[%emt 0:00:00]} Qd8 {[%emt 0:01:32]} (50... Qc7 51. a6 Rfe4) 51. Rxc6 {[%emt 0:00:00]} Rxc6 {[%emt 0:00:28]} 52. Rxc6 {[%emt 0:00:00]} Qe8 {[%emt 0:00:25]} 53. Rc7+ {[%emt 0:00:00]} Kg8 {[%emt 0:00:07]} 54. Qd1 {[%emt 0:01:47]} Re4 {[%emt 0:01:06] [#] ...Re1+ is the strong threat.} 55. Rc1 {[%emt 0:00:05]} Ne6 {[%emt 0:00:58]} 56. Nc5 {[%emt 0:01:11]} Nxd4 {[%emt 0:01:38]} 57. Nxe4 {[%emt 0:00:16]} Qxe4 {[%emt 0:00:02][%mdl 4096] Endgame KQR-KQN} 58. Qe1 {[%emt 0:03:12]} Ne2+ {[%emt 0:01:28]} 59. Kf1 {[%emt 0:00:11]} Qh4 {[%emt 0:00:29]} 60. Kxe2 {[%emt 0:00:13] White mates.} d4 {[%emt 0:00:23]} 61. f3 {[%emt 0:01:22]} Qxh5 {[%emt 0:00:38]} 62. Kf2 {[%emt 0:00:52]} Qh4+ {[%emt 0:00:30]} 63. Kg1 {[%emt 0:00:07]} Qf4 {[%emt 0:00:23]} 64. Qe8+ {[%emt 0:00:22]} Kg7 {[%emt 0:00:17]} 65. Qe7+ {[%emt 0:00:11]} Kg6 {[%emt 0:00:10]} 66. Qe4+ {[%emt 0:00:17] Weighted Error Value: White=0.20 (precise) /Black=0.33} 1-0